[Event "94th Tradewise Hastings Congress"]
[Site "Hastings"]
[Date "2019.01.02"]
[Round "6"]
[White "Ratnesan, Ranesh"]
[Black "Peek, Marcel"]
[Result "1/2-1/2"]
[ECO "D20"]
[WhiteElo "2055"]
[BlackElo "2293"]
[Annotator "NA"]
[PlyCount "95"]
[EventDate "2018.12.28"]
[EventType "swiss"]
[EventCountry "ENG"]
[SourceTitle "playchess.com"]
[Source "ChessBase"]
[SourceQuality "1"]
[TimeControl "40/6000+30:3000+30"]

1. d4 {[%emt 0:00:00]} d5 {[%emt 0:00:00]} 2. c4 {[%emt 0:00:00]} dxc4 {[%emt 0:00:00]} 3. e3 {[%emt 0:00:06]} e5 {[%emt 0:00:00]} 4. Bxc4 {[%emt 0:00:12]} exd4 {[%emt 0:00:05]} 5. exd4 {[%emt 0:00:10]} Bd6 {[%emt 0:00:06]} 6. Nf3 {[%emt 0:00:40]} Nf6 {[%emt 0:00:06]} 7. O-O {[%emt 0:00:44]} O-O {[%emt 0:00:08]} 8. Bg5 {[%emt 0:04:47]} h6 {[%emt 0:01:46]} 9. Bh4 {[%emt 0:00:19]} Nc6 {[%emt 0:00:35]} 10. h3 {[%emt 0:04:32]} g5 {[%emt 0:03:08]} 11. Nxg5 {[%emt 0:25:52]} hxg5 {[%emt 0:01:54]} 12. Bxg5 {[%emt 0:00:09]} Nxd4 {[%emt 0:09:02]} 13. Nc3 {[%emt 0:13:03]} Be7 {[%emt 0:17:12]} 14. Bh6 {[%emt 0:18:01]} Nf5 {[%emt 0:19:21]} 15. Bxf8 {[%emt 0:04:08]} Qxf8 {[%emt 0:01:41]} 16. Qf3 {[%emt 0:03:30]} Qg7 {[%emt 0:01:28]} 17. Rfe1 {[%emt 0:04:59]} Nh4 {[%emt 0:12:37]} 18. Qg3 {[%emt 0:02:48]} Qxg3 {[%emt 0:00:15]} 19. fxg3 {[%emt 0:00:07]} Nf5 {[%emt 0:00:26]} 20. g4 {[%emt 0:06:55]} Bc5+ {[%emt 0:00:10]} 21. Kh1 {[%emt 0:00:20]} Nd6 {[%emt 0:02:53]} 22. Bb3 {[%emt 0:04:03]} Kg7 {[%emt 0:17:57]} 23. Kh2 {[%emt 0:02:32]} Bd7 {[%emt 0:01:27]} 24. Kg3 {[%emt 0:01:59]} Bc6 {[%emt 0:01:05]} 25. Bc2 {[%emt 0:02:31]} Rg8 {[%emt 0:05:27]} 26. Rad1 {[%emt 0:01:11]} b5 {[%emt 0:01:18]} 27. Re5 {[%emt 0:02:06]} Bb4 {[%emt 0:03:11]} 28. Rd4 {[%emt 0:02:35]} Nc4 {[%emt 0:04:30]} 29. Rg5+ {[%emt 0:00:56]} Kh8 {[%emt 0:00:05]} 30. Rf5 {[%emt 0:00:53]} Bxc3 {[%emt 0:03:54]} 31. bxc3 {[%emt 0:00:02]} Kg7 {[%emt 0:01:46]} 32. Rdf4 {[%emt 0:00:36]} Ne3 {[%emt 0:01:11]} 33. Rxf6 {[%emt 0:00:46]} Bd5 {[%emt 0:00:50]} 34. Bb3 {[%emt 0:02:07]} Rf8 {[%emt 0:00:53]} 35. Rf2 {[%emt 0:01:30]} c5 {[%emt 0:00:28]} 36. Bxd5 {[%emt 0:01:18]} Nxd5 {[%emt 0:00:01]} 37. R6f5 {[%emt 0:00:10]} Nxc3 {[%emt 0:00:12]} 38. Rg5+ {[%emt 0:01:21]} Kh6 {[%emt 0:00:25]} 39. Rh5+ {[%emt 0:00:31]} Kg6 {[%emt 0:00:15]} 40. Kf3 {[%emt 0:00:52]} Rc8 {[%emt 0:00:51]} 41. Rc2 {[%emt 0:05:37]} b4 {[%emt 0:05:02]} 42. Ke3 {[%emt 0:04:06]} a6 {[%emt 0:10:39]} 43. Rxc3 {[%emt 0:08:01]} bxc3 {[%emt 0:00:05]} 44. Kd3 {[%emt 0:00:05]} Rb8 {[%emt 0:14:37]} 45. Kxc3 {[%emt 0:00:31]} Rb5 {[%emt 0:00:22]} 46. Rd5 {[%emt 0:07:59]} Ra5 {[%emt 0:00:47]} 47. Kb3 {[%emt 0:01:06]} c4+ {[%emt 0:01:05]} 48. Kxc4 {[%emt 0:00:20]} 1/2-1/2

[Event "94th Tradewise Hastings Congress"]
[Site "Hastings"]
[Date "2019.01.02"]
[Round "6"]
[White "Trevelyan, John"]
[Black "Stefansson, Vignir Vatnar"]
[Result "0-1"]
[ECO "A88"]
[WhiteElo "1996"]
[BlackElo "2266"]
[Annotator "NA"]
[PlyCount "122"]
[EventDate "2018.12.28"]
[EventType "swiss"]
[EventCountry "ENG"]
[SourceTitle "playchess.com"]
[Source "ChessBase"]
[SourceQuality "1"]
[TimeControl "40/6000+30:3000+30"]

1. d4 {[%emt 0:00:00]} f5 {[%emt 0:00:00]} 2. g3 {[%emt 0:00:18]} Nf6 {[%emt 0:00:00]} 3. Bg2 {[%emt 0:00:07]} g6 {[%emt 0:00:00]} 4. c4 {[%emt 0:01:03]} Bg7 {[%emt 0:00:00]} 5. Nc3 {[%emt 0:00:09]} O-O {[%emt 0:00:00]} 6. Nf3 {[%emt 0:01:33]} d6 {[%emt 0:00:05]} 7. O-O {[%emt 0:00:07]} c6 {[%emt 0:00:02]} 8. b3 {[%emt 0:02:10]} Na6 {[%emt 0:00:05]} 9. Bb2 {[%emt 0:00:18]} Bd7 {[%emt 0:00:28]} 10. Re1 {[%emt 0:02:18]} Re8 {[%emt 0:00:06]} 11. Qd2 {[%emt 0:06:15]} e5 {[%emt 0:07:33]} 12. dxe5 {[%emt 0:05:57]} dxe5 {[%emt 0:01:02]} 13. e4 {[%emt 0:00:19]} Nc5 {[%emt 0:02:34]} 14. exf5 {[%emt 0:05:13]} e4 {[%emt 0:03:08]} 15. fxg6 {[%emt 0:03:51]} exf3 {[%emt 0:01:01]} 16. gxh7+ {[%emt 0:00:20]} Kh8 {[%emt 0:07:38]} 17. Bxf3 {[%emt 0:00:16]} Bf5 {[%emt 0:02:54]} 18. Qxd8 {[%emt 0:09:30]} Raxd8 {[%emt 0:00:15]} 19. Rxe8+ {[%emt 0:00:16]} Rxe8 {[%emt 0:00:21]} 20. Rd1 {[%emt 0:00:21]} Nxh7 {[%emt 0:02:12]} 21. Bh5 {[%emt 0:07:31]} Rc8 {[%emt 0:02:33]} 22. Ba3 {[%emt 0:05:01]} Nd3 {[%emt 0:02:04]} 23. g4 {[%emt 0:08:32]} Nf4 {[%emt 0:01:08]} 24. gxf5 {[%emt 0:00:38]} Nxh5 {[%emt 0:00:40]} 25. Ne4 {[%emt 0:00:30]} N5f6 {[%emt 0:03:18]} 26. Nd6 {[%emt 0:02:28]} Rc7 {[%emt 0:00:25]} 27. Bc5 {[%emt 0:03:12]} b6 {[%emt 0:01:33]} 28. Be3 {[%emt 0:00:38]} Rd7 {[%emt 0:00:34]} 29. Rd2 {[%emt 0:01:22]} Ng4 {[%emt 0:00:45]} 30. Nc8 {[%emt 0:02:29]} Rf7 {[%emt 0:05:52]} 31. Rd8+ {[%emt 0:01:07]} Nf8 {[%emt 0:00:10]} 32. c5 {[%emt 0:09:33]} b5 {[%emt 0:01:06]} 33. Nd6 {[%emt 0:01:11]} Re7 {[%emt 0:06:18]} 34. Rc8 {[%emt 0:03:00]} Kh7 {[%emt 0:04:10]} 35. f6 {[%emt 0:03:32]} Nxf6 {[%emt 0:00:27]} 36. Rxc6 {[%emt 0:00:16]} Nd5 {[%emt 0:03:12]} 37. Nxb5 {[%emt 0:02:07]} Ne6 {[%emt 0:01:19]} 38. Ra6 {[%emt 0:03:42]} Nxe3 {[%emt 0:00:23]} 39. fxe3 {[%emt 0:00:11]} Nxc5 {[%emt 0:00:03]} 40. Rxa7 {[%emt 0:00:43]} Rxe3 {[%emt 0:00:06]} 41. Nd6 {[%emt 0:51:58]} Re1+ {[%emt 0:52:05]} 42. Kg2 {[%emt 0:00:13]} Kg6 {[%emt 0:00:12]} 43. b4 {[%emt 0:00:29]} Nd3 {[%emt 0:01:09]} 44. b5 {[%emt 0:02:21]} Bf8 {[%emt 0:04:19]} 45. Nc4 {[%emt 0:03:44]} Rc1 {[%emt 0:04:45]} 46. Ne3 {[%emt 0:05:22]} Bc5 {[%emt 0:01:31]} 47. Ra6+ {[%emt 0:00:14]} Kg5 {[%emt 0:00:17]} 48. Kf3 {[%emt 0:00:53]} Nb4 {[%emt 0:09:43]} 49. Re6 {[%emt 0:04:43]} Rc3 {[%emt 0:02:34]} 50. Ke2 {[%emt 0:06:20]} Kf4 {[%emt 0:03:02]} 51. Ng2+ {[%emt 0:00:00]} Kg4 {[%emt 0:00:00]} 52. Ne1 {[%emt 0:00:00]} Ra3 {[%emt 0:00:00]} 53. b6 {[%emt 0:00:00]} Rxa2+ {[%emt 0:00:00]} 54. Kd1 {[%emt 0:00:00]} Nd5 {[%emt 0:00:00]} 55. Nc2 {[%emt 0:00:00]} Bxb6 {[%emt 0:00:00]} 56. Rg6+ {[%emt 0:00:00]} Kf4 {[%emt 0:00:00]} 57. h4 {[%emt 0:00:00]} Ne3+ {[%emt 0:00:00]} 58. Nxe3 {[%emt 0:00:00]} Bxe3 {[%emt 0:00:00]} 59. Rc6 {[%emt 0:00:00]} Kf3 {[%emt 0:00:00]} 60. Rc4 {[%emt 0:00:00]} Rd2+ {[%emt 0:00:00]} 61. Ke1 {[%emt 0:00:00]} Rd3 {[%emt 0:00:00]} 0-1

[Event "94th Tradewise Hastings Congress"]
[Site "Hastings"]
[Date "2019.01.02"]
[Round "6"]
[White "Salmons, Calum"]
[Black "Armstrong, Malcolm J"]
[Result "0-1"]
[ECO "B16"]
[WhiteElo "1905"]
[BlackElo "2052"]
[Annotator "NA"]
[PlyCount "122"]
[EventDate "2018.12.28"]
[EventType "swiss"]
[EventCountry "ENG"]
[SourceTitle "playchess.com"]
[Source "ChessBase"]
[SourceQuality "1"]
[TimeControl "40/6000+30:3000+30"]

1. e4 {[%emt 0:00:00]} c6 {[%emt 0:00:00]} 2. Nc3 {[%emt 0:00:00]} d5 {[%emt 0:00:00]} 3. Nf3 {[%emt 0:00:00]} dxe4 {[%emt 0:00:40]} 4. Nxe4 {[%emt 0:00:00]} Nf6 {[%emt 0:00:18]} 5. Nxf6+ {[%emt 0:00:04]} gxf6 {[%emt 0:00:11]} 6. d4 {[%emt 0:00:39]} Bf5 {[%emt 0:02:06]} 7. Bf4 {[%emt 0:03:40]} e6 {[%emt 0:00:36]} 8. Nh4 {[%emt 0:05:00]} Bg6 {[%emt 0:03:06]} 9. Nxg6 {[%emt 0:05:32]} hxg6 {[%emt 0:00:27]} 10. c3 {[%emt 0:03:57]} Bd6 {[%emt 0:00:16]} 11. Qd2 {[%emt 0:03:08]} Qc7 {[%emt 0:01:18]} 12. Bxd6 {[%emt 0:03:28]} Qxd6 {[%emt 0:00:04]} 13. h3 {[%emt 0:05:53]} Nd7 {[%emt 0:00:37]} 14. O-O-O {[%emt 0:03:10]} O-O-O {[%emt 0:02:04]} 15. Bc4 {[%emt 0:04:33]} Kb8 {[%emt 0:02:40]} 16. Rhe1 {[%emt 0:09:04]} f5 {[%emt 0:05:05]} 17. Qe3 {[%emt 0:07:20]} Nb6 {[%emt 0:03:15]} 18. Bb3 {[%emt 0:03:22]} Nd5 {[%emt 0:02:29]} 19. Bxd5 {[%emt 0:04:34]} Qxd5 {[%emt 0:00:50]} 20. Qg3+ {[%emt 0:05:42]} Ka8 {[%emt 0:09:36]} 21. Kb1 {[%emt 0:03:51]} Qd6 {[%emt 0:01:12]} 22. Qe5 {[%emt 0:06:22]} Qxe5 {[%emt 0:06:34]} 23. dxe5 {[%emt 0:05:49]} Kb8 {[%emt 0:01:04]} 24. Kc2 {[%emt 0:05:38]} Rd5 {[%emt 0:02:33]} 25. c4 {[%emt 0:03:20]} Rxd1 {[%emt 0:00:23]} 26. Rxd1 {[%emt 0:00:50]} Kc7 {[%emt 0:00:11]} 27. Kc3 {[%emt 0:01:20]} Rh4 {[%emt 0:06:08]} 28. Rd4 {[%emt 0:03:40]} Rh8 {[%emt 0:01:40]} 29. b4 {[%emt 0:01:52]} b6 {[%emt 0:02:27]} 30. b5 {[%emt 0:02:59]} c5 {[%emt 0:02:51]} 31. Rf4 {[%emt 0:02:07]} f6 {[%emt 0:17:29]} 32. exf6 {[%emt 0:02:41]} Kd6 {[%emt 0:01:48]} 33. Rf3 {[%emt 0:00:33]} Ke5 {[%emt 0:00:25]} 34. Rd3 {[%emt 0:00:33]} Rh7 {[%emt 0:00:10]} 35. g4 {[%emt 0:03:09]} Kxf6 {[%emt 0:01:06]} 36. gxf5 {[%emt 0:00:47]} gxf5 {[%emt 0:04:07]} 37. a4 {[%emt 0:01:31]} e5 {[%emt 0:02:32]} 38. Rd6+ {[%emt 0:01:06]} Ke7 {[%emt 0:03:37]} 39. Rd3 {[%emt 0:00:17]} f4 {[%emt 0:09:12]} 40. Rf3 {[%emt 0:01:26]} Ke6 {[%emt 0:01:54]} 41. Kc2 {[%emt 0:21:01]} Kf5 {[%emt 0:01:17]} 42. Rd3 {[%emt 0:00:48]} e4 {[%emt 0:06:04]} 43. Rd5+ {[%emt 0:01:02]} Ke6 {[%emt 0:02:24]} 44. a5 {[%emt 0:02:30]} Rxh3 {[%emt 0:02:50]} 45. a6 {[%emt 0:04:55]} Ra3 {[%emt 0:01:52]} 46. Rd8 {[%emt 0:02:40]} Ra2+ {[%emt 0:00:30]} 47. Kd1 {[%emt 0:00:16]} Rxf2 {[%emt 0:00:14]} 48. Re8+ {[%emt 0:01:32]} Kf5 {[%emt 0:00:40]} 49. Re7 {[%emt 0:01:02]} e3 {[%emt 0:03:00]} 50. Rxa7 {[%emt 0:10:16]} f3 {[%emt 0:01:46]} 51. Rf7+ {[%emt 0:07:15]} Ke4 {[%emt 0:00:15]} 52. a7 {[%emt 0:01:56]} Ra2 {[%emt 0:00:17]} 53. Re7+ {[%emt 0:01:13]} Kd3 {[%emt 0:00:31]} 54. Rd7+ {[%emt 0:00:28]} Kxc4 {[%emt 0:00:19]} 55. Re7 {[%emt 0:00:51]} e2+ {[%emt 0:00:22]} 56. Ke1 {[%emt 0:00:40]} Kxb5 {[%emt 0:00:53]} 57. Kf2 {[%emt 0:00:24]} Ra3 {[%emt 0:00:44]} 58. Rf7 {[%emt 0:00:26]} c4 {[%emt 0:00:42]} 59. Rf5+ {[%emt 0:00:29]} Kb4 {[%emt 0:00:15]} 60. Rxf3 {[%emt 0:00:23]} Rxf3+ {[%emt 0:00:13]} 61. Kxf3 {[%emt 0:00:06]} e1=Q {[%emt 0:00:10]} 0-1

[Event "94th Tradewise Hastings Congress"]
[Site "Hastings"]
[Date "2019.01.02"]
[Round "6"]
[White "Graham, Cassie M"]
[Black "Stoyanov, Viktor"]
[Result "1/2-1/2"]
[ECO "B23"]
[WhiteElo "1889"]
[BlackElo "2205"]
[Annotator "NA"]
[PlyCount "107"]
[EventDate "2018.12.28"]
[EventType "swiss"]
[EventCountry "ENG"]
[SourceTitle "playchess.com"]
[Source "ChessBase"]
[SourceQuality "1"]
[TimeControl "40/6000+30:3000+30"]

1. e4 {[%emt 0:00:00]} c5 {[%emt 0:01:07]} 2. Nc3 {[%emt 0:00:00]} Nc6 {[%emt 0:00:04]} 3. f4 {[%emt 0:00:00]} g6 {[%emt 0:00:06]} 4. Nf3 {[%emt 0:00:00]} Bg7 {[%emt 0:00:09]} 5. Bc4 {[%emt 0:00:00]} e6 {[%emt 0:00:04]} 6. f5 {[%emt 0:00:00]} Nge7 {[%emt 0:00:03]} 7. fxe6 {[%emt 0:00:05]} dxe6 {[%emt 0:00:05]} 8. d3 {[%emt 0:00:10]} Nd4 {[%emt 0:00:05]} 9. O-O {[%emt 0:00:52]} Nec6 {[%emt 0:00:06]} 10. Bf4 {[%emt 0:03:46]} O-O {[%emt 0:01:29]} 11. a4 {[%emt 0:07:00]} b6 {[%emt 0:05:28]} 12. Nb5 {[%emt 0:06:08]} Nxf3+ {[%emt 0:09:23]} 13. Qxf3 {[%emt 0:01:17]} Nd4 {[%emt 0:04:12]} 14. Qd1 {[%emt 0:07:08]} Nxb5 {[%emt 0:05:12]} 15. Bxb5 {[%emt 0:00:20]} Bb7 {[%emt 0:00:28]} 16. Rb1 {[%emt 0:01:16]} Bxb2 {[%emt 0:03:58]} 17. Qg4 {[%emt 0:04:34]} Bg7 {[%emt 0:01:34]} 18. Qg3 {[%emt 0:11:18]} Qd4+ {[%emt 0:04:24]} 19. Kh1 {[%emt 0:02:17]} e5 {[%emt 0:01:18]} 20. Bg5 {[%emt 0:03:14]} f6 {[%emt 0:01:59]} 21. Be3 {[%emt 0:02:42]} Qd6 {[%emt 0:00:19]} 22. Bc4+ {[%emt 0:03:58]} Kh8 {[%emt 0:00:06]} 23. Qh4 {[%emt 0:08:24]} Rae8 {[%emt 0:05:17]} 24. Rf3 {[%emt 0:05:27]} Bc8 {[%emt 0:01:09]} 25. g4 {[%emt 0:03:43]} g5 {[%emt 0:01:31]} 26. Qh5 {[%emt 0:02:17]} Be6 {[%emt 0:00:36]} 27. Rh3 {[%emt 0:01:45]} h6 {[%emt 0:00:09]} 28. Qg6 {[%emt 0:05:07]} Qd7 {[%emt 0:01:53]} 29. Bb5 {[%emt 0:04:47]} Qe7 {[%emt 0:05:29]} 30. Bxe8 {[%emt 0:03:00]} Rxe8 {[%emt 0:00:08]} 31. Rg3 {[%emt 0:02:37]} Qd7 {[%emt 0:02:15]} 32. Ra1 {[%emt 0:01:46]} f5 {[%emt 0:03:03]} 33. Bxg5 {[%emt 0:06:28]} Bf7 {[%emt 0:01:39]} 34. Qxf5 {[%emt 0:00:05]} Qxf5 {[%emt 0:01:30]} 35. gxf5 {[%emt 0:00:05]} hxg5 {[%emt 0:00:04]} 36. Rxg5 {[%emt 0:00:04]} c4 {[%emt 0:01:38]} 37. Rag1 {[%emt 0:03:23]} Bh6 {[%emt 0:00:30]} 38. R5g3 {[%emt 0:00:25]} Rc8 {[%emt 0:01:10]} 39. Rh3 {[%emt 0:03:48]} Kh7 {[%emt 0:00:08]} 40. f6 {[%emt 0:06:12]} Rg8 {[%emt 0:02:30]} 41. Rxg8 {[%emt 0:47:57]} Bxg8 {[%emt 0:50:05]} 42. dxc4 {[%emt 0:00:00]} Bxc4 {[%emt 0:00:00]} 43. Rc3 {[%emt 0:00:00]} Be6 {[%emt 0:00:00]} 44. Rc7+ {[%emt 0:00:00]} Kg6 {[%emt 0:00:00]} 45. Rxa7 {[%emt 0:00:00]} Kxf6 {[%emt 0:00:00]} 46. Kg2 {[%emt 0:00:00]} Bd2 {[%emt 0:00:00]} 47. Kf3 {[%emt 0:00:00]} Bb4 {[%emt 0:00:00]} 48. Rc7 {[%emt 0:00:00]} Ba5 {[%emt 0:00:00]} 49. h4 {[%emt 0:00:00]} Bf7 {[%emt 0:00:00]} 50. Rc6+ {[%emt 0:00:00]} Ke7 {[%emt 0:00:00]} 51. Rc7+ {[%emt 0:00:00]} Kf6 {[%emt 0:00:00]} 52. Rc6+ {[%emt 0:00:00]} Ke7 {[%emt 0:00:00]} 53. Rc7+ {[%emt 0:00:00]} Kf6 {[%emt 0:00:00]} 54. Rc6+ {[%emt 0:03:53]} 1/2-1/2

[Event "94th Tradewise Hastings Congress"]
[Site "Hastings"]
[Date "2019.01.02"]
[Round "6"]
[White "Boswell, Jacob Connor"]
[Black "Rolvag, Mikael"]
[Result "1/2-1/2"]
[ECO "B16"]
[WhiteElo "1858"]
[BlackElo "2107"]
[Annotator "NA"]
[PlyCount "53"]
[EventDate "2018.12.28"]
[EventType "swiss"]
[EventCountry "ENG"]
[SourceTitle "playchess.com"]
[Source "ChessBase"]
[SourceQuality "1"]
[TimeControl "40/6000+30:3000+30"]

1. e4 {[%emt 0:00:00]} c6 {[%emt 0:01:33]} 2. d4 {[%emt 0:00:00]} d5 {[%emt 0:00:01]} 3. Nd2 {[%emt 0:00:03]} dxe4 {[%emt 0:02:41]} 4. Nxe4 {[%emt 0:00:06]} Nf6 {[%emt 0:00:05]} 5. Nxf6+ {[%emt 0:00:46]} gxf6 {[%emt 0:01:42]} 6. Bf4 {[%emt 0:06:57]} Bf5 {[%emt 0:01:14]} 7. Nf3 {[%emt 0:00:50]} Nd7 {[%emt 0:00:53]} 8. Bd3 {[%emt 0:04:58]} Bg6 {[%emt 0:01:34]} 9. Qd2 {[%emt 0:03:34]} Nb6 {[%emt 0:01:29]} 10. O-O-O {[%emt 0:02:58]} Qd5 {[%emt 0:07:01]} 11. Kb1 {[%emt 0:04:11]} e6 {[%emt 0:04:13]} 12. h4 {[%emt 0:06:51]} Bxd3 {[%emt 0:04:26]} 13. Qxd3 {[%emt 0:01:55]} Qb5 {[%emt 0:01:09]} 14. Rhe1 {[%emt 0:12:22]} Qxd3 {[%emt 0:01:34]} 15. Rxd3 {[%emt 0:00:18]} Rg8 {[%emt 0:03:50]} 16. Bg3 {[%emt 0:02:04]} O-O-O {[%emt 0:04:18]} 17. Red1 {[%emt 0:06:32]} Be7 {[%emt 0:05:19]} 18. b3 {[%emt 0:02:17]} Rd7 {[%emt 0:07:00]} 19. c3 {[%emt 0:09:36]} Rgd8 {[%emt 0:04:14]} 20. Kc2 {[%emt 0:00:43]} Nd5 {[%emt 0:00:53]} 21. R3d2 {[%emt 0:06:24]} Bf8 {[%emt 0:01:43]} 22. c4 {[%emt 0:01:59]} Nb4+ {[%emt 0:06:31]} 23. Kc3 {[%emt 0:00:54]} Na6 {[%emt 0:00:54]} 24. Rd3 {[%emt 0:01:32]} Bg7 {[%emt 0:03:10]} 25. c5 {[%emt 0:05:53]} Nc7 {[%emt 0:02:02]} 26. Bxc7 {[%emt 0:00:32]} Kxc7 {[%emt 0:00:28]} 27. a4 {[%emt 0:05:28]} 1/2-1/2

[Event "94th Tradewise Hastings Congress"]
[Site "Hastings"]
[Date "2019.01.02"]
[Round "6"]
[White "Gu, In Jung"]
[Black "Sugden, John N"]
[Result "1-0"]
[ECO "C11"]
[WhiteElo "1794"]
[BlackElo "2072"]
[Annotator "NA"]
[PlyCount "51"]
[EventDate "2018.12.28"]
[EventType "swiss"]
[EventCountry "ENG"]
[SourceTitle "playchess.com"]
[Source "ChessBase"]
[SourceQuality "1"]
[TimeControl "40/6000+30:3000+30"]

1. e4 {[%emt 0:00:00]} c6 {[%emt 0:00:00]} 2. d4 {[%emt 0:00:00]} d5 {[%emt 0:00:03]} 3. f3 {[%emt 0:00:00]} e6 {[%emt 0:00:55]} 4. Nc3 {[%emt 0:00:19]} Nf6 {[%emt 0:00:25]} 5. e5 {[%emt 0:05:52]} Nfd7 {[%emt 0:00:14]} 6. f4 {[%emt 0:09:37]} c5 {[%emt 0:00:27]} 7. Nf3 {[%emt 0:01:03]} Nc6 {[%emt 0:00:23]} 8. Be3 {[%emt 0:00:43]} Qb6 {[%emt 0:01:15]} 9. Qd2 {[%emt 0:05:08]} cxd4 {[%emt 0:15:22]} 10. Nxd4 {[%emt 0:01:13]} Nxd4 {[%emt 0:03:11]} 11. Bxd4 {[%emt 0:00:52]} Bc5 {[%emt 0:13:45]} 12. Na4 {[%emt 0:02:30]} Qc6 {[%emt 0:04:31]} 13. Nxc5 {[%emt 0:20:00]} Nxc5 {[%emt 0:00:18]} 14. Qa5 {[%emt 0:02:43]} Nd7 {[%emt 0:04:11]} 15. Bb5 {[%emt 0:05:55]} Qxc2 {[%emt 0:00:36]} 16. O-O {[%emt 0:04:35]} O-O {[%emt 0:02:20]} 17. Rac1 {[%emt 0:04:25]} Qe4 {[%emt 0:01:01]} 18. Qc3 {[%emt 0:03:32]} Qg6 {[%emt 0:09:14]} 19. Bd3 {[%emt 0:07:04]} Qg4 {[%emt 0:03:38]} 20. Rf3 {[%emt 0:02:40]} f5 {[%emt 0:03:49]} 21. exf6 {[%emt 0:02:18]} Nxf6 {[%emt 0:00:12]} 22. Rg3 {[%emt 0:01:57]} Qh4 {[%emt 0:00:52]} 23. Rh3 {[%emt 0:01:31]} Qg4 {[%emt 0:08:41]} 24. Bxf6 {[%emt 0:00:50]} Rxf6 {[%emt 0:00:18]} 25. Bxh7+ {[%emt 0:00:07]} Kf8 {[%emt 0:02:34]} 26. Bg6 {[%emt 0:13:55]} 1-0

[Event "94th Tradewise Hastings Congress"]
[Site "Hastings"]
[Date "2019.01.04"]
[Round "8"]
[White "Korneev, Oleg"]
[Black "Kalavannan, Koby"]
[Result "1-0"]
[ECO "B35"]
[WhiteElo "2550"]
[BlackElo "2328"]
[Annotator "ChessBase"]
[PlyCount "83"]
[EventDate "2018.12.28"]
[EventType "swiss"]
[EventCountry "ENG"]
[SourceTitle "playchess.com"]
[Source "ChessBase"]
[SourceQuality "1"]
[TimeControl "40/6000+30:3000+30"]

1. e4 {[%emt 0:03:23]} c5 {[%emt 0:00:00]} 2. Nf3 {[%emt 0:00:06]} Nc6 {[%emt 0:00:00]} 3. d4 {[%emt 0:01:05]} cxd4 {[%emt 0:00:02]} 4. Nxd4 {[%emt 0:00:04]} g6 {[%emt 0:00:11]} 5. Nc3 {[%emt 0:01:14]} Bg7 {[%emt 0:00:14]} 6. Be3 {[%emt 0:00:04]} Nf6 {[%emt 0:00:33]} 7. Bc4 {[%emt 0:00:12]} O-O {[%emt 0:00:06]} 8. Bb3 {[%emt 0:00:11]} Re8 {[%emt 0:00:06]} 9. h3 {[%emt 0:00:06]} e6 {[%emt 0:10:52]} 10. O-O {[%emt 0:28:02]} d5 {[%emt 0:01:17]} 11. exd5 {[%emt 0:00:10]} Nxd5 {[%emt 0:03:24]} 12. Nxd5 {[%emt 0:04:11]} exd5 {[%emt 0:00:27]} 13. c3 {[%emt 0:04:01]} Na5 {[%emt 0:09:06]} 14. Qd3 {[%emt 0:19:34]} a6 {[%emt 0:09:40]} 15. Rad1 {[%emt 0:00:55]} b5 {[%emt 0:02:28]} 16. Nf3 {[%emt 0:05:05]} Nxb3 {[%emt 0:03:01]} 17. axb3 {[%emt 0:00:03]} Bb7 {[%emt 0:09:06]} 18. Bd4 {[%emt 0:01:01]} Re4 {[%emt 0:09:56]} 19. Bxg7 {[%emt 0:12:17]} Kxg7 {[%emt 0:00:01]} 20. Nd4 {[%emt 0:08:57]} Qb6 {[%emt 0:11:50]} 21. f3 {[%emt 0:00:31]} Re7 {[%emt 0:03:26]} 22. Rfe1 {[%emt 0:01:01]} Rae8 {[%emt 0:01:10]} 23. Rxe7 {[%emt 0:00:20]} Rxe7 {[%emt 0:00:01]} 24. b4 {[%emt 0:00:20]} Bc8 {[%emt 0:11:15]} 25. Qd2 {[%emt 0:02:50]} Re5 {[%emt 0:05:52]} 26. Re1 {[%emt 0:00:33]} Qf6 {[%emt 0:04:32]} 27. Rxe5 {[%emt 0:00:58]} Qxe5 {[%emt 0:00:01]} 28. Nc6 {[%emt 0:03:47]} Qf6 {[%emt 0:02:00]} 29. Nd4 {[%emt 0:02:17]} Qe5 {[%emt 0:03:44]} 30. Kf1 {[%emt 0:00:08]} Qh2 {[%emt 0:05:02]} 31. Qe3 {[%emt 0:01:18]} Qh1+ {[%emt 0:01:08]} 32. Kf2 {[%emt 0:00:59]} Qb1 {[%emt 0:00:09]} 33. Qe5+ {[%emt 0:00:18]} Kh6 {[%emt 0:00:11]} 34. Qf4+ {[%emt 0:00:55]} Kg7 {[%emt 0:00:04]} 35. Qe5+ {[%emt 0:00:08]} Kh6 {[%emt 0:00:01]} 36. Qh8 {[%emt 0:06:28]} Bxh3 {[%emt 0:05:51]} 37. gxh3 {[%emt 0:00:38]} Qxb2+ {[%emt 0:00:13]} 38. Ne2 {[%emt 0:00:59]} Qc2 {[%emt 0:01:13]} 39. Qf8+ {[%emt 0:00:07]} Kg5 {[%emt 0:00:30]} 40. Qxf7 {[%emt 0:00:16]} Qf5 {[%emt 0:00:02]} 41. Qxh7 {[%emt 0:51:43]} d4 {[%emt 0:02:05]} 42. h4+ {[%emt 0:00:00]} 1-0

[Event "94th Tradewise Hastings Congress"]
[Site "Hastings"]
[Date "2019.01.04"]
[Round "8"]
[White "Gormally, Daniel W"]
[Black "Hawkins, Jonathan"]
[Result "1/2-1/2"]
[ECO "C42"]
[WhiteElo "2478"]
[BlackElo "2583"]
[Annotator "ChessBase"]
[PlyCount "25"]
[EventDate "2018.12.28"]
[EventType "swiss"]
[EventCountry "ENG"]
[SourceTitle "playchess.com"]
[Source "ChessBase"]
[SourceQuality "1"]
[TimeControl "40/6000+30:3000+30"]

1. e4 {[%emt 0:00:00]} e5 {[%emt 0:00:00]} 2. Nf3 {[%emt 0:00:00]} Nf6 {[%emt 0:00:00]} 3. Nxe5 {[%emt 0:00:31]} d6 {[%emt 0:00:00]} 4. Nf3 {[%emt 0:00:21]} Nxe4 {[%emt 0:00:11]} 5. d4 {[%emt 0:00:53]} d5 {[%emt 0:00:27]} 6. Bd3 {[%emt 0:00:30]} Bd6 {[%emt 0:01:05]} 7. O-O {[%emt 0:00:50]} O-O {[%emt 0:00:05]} 8. c4 {[%emt 0:01:06]} c6 {[%emt 0:00:11]} 9. Re1 {[%emt 0:00:40]} Bf5 {[%emt 0:03:48]} 10. Nc3 {[%emt 0:00:48]} Nxc3 {[%emt 0:01:44]} 11. bxc3 {[%emt 0:00:07]} Bxd3 {[%emt 0:00:05]} 12. Qxd3 {[%emt 0:00:09]} dxc4 {[%emt 0:00:08]} 13. Qxc4 {[%emt 0:03:20]} 1/2-1/2

[Event "94th Tradewise Hastings Congress"]
[Site "Hastings"]
[Date "2019.01.04"]
[Round "8"]
[White "Petrov, Martin"]
[Black "Sulskis, Sarunas"]
[Result "1/2-1/2"]
[ECO "C57"]
[WhiteElo "2472"]
[BlackElo "2525"]
[Annotator "ChessBase"]
[PlyCount "27"]
[EventDate "2018.12.28"]
[EventType "swiss"]
[EventCountry "ENG"]
[SourceTitle "playchess.com"]
[Source "ChessBase"]
[SourceQuality "1"]
[TimeControl "40/6000+30:3000+30"]

1. e4 {[%emt 0:00:00]} e5 {[%emt 0:00:00]} 2. Nf3 {[%emt 0:00:00]} Nc6 {[%emt 0:00:00]} 3. Bc4 {[%emt 0:00:00]} Nf6 {[%emt 0:00:07]} 4. Ng5 {[%emt 0:00:10]} d5 {[%emt 0:00:40]} 5. exd5 {[%emt 0:00:07]} Nxd5 {[%emt 0:00:21]} 6. d4 {[%emt 0:00:36]} Bb4+ {[%emt 0:16:42]} 7. c3 {[%emt 0:07:00]} Be7 {[%emt 0:00:10]} 8. Nxf7 {[%emt 0:21:09]} Kxf7 {[%emt 0:00:13]} 9. Qf3+ {[%emt 0:00:04]} Ke6 {[%emt 0:03:31]} 10. O-O {[%emt 0:03:33]} Na5 {[%emt 0:21:25]} 11. Qg4+ {[%emt 0:06:52]} Kf7 {[%emt 0:00:37]} 12. Qf3+ {[%emt 0:00:06]} Ke6 {[%emt 0:00:09]} 13. Qg4+ {[%emt 0:00:29]} Kf7 {[%emt 0:00:08]} 14. Qf3+ {[%emt 0:00:15]} 1/2-1/2